[Event "Live Chess"]
[Site "Chess.com"]
[Date "2023.05.21"]
[Round "-"]
[White "BJAW87"]
[Black "Salpingidis"]
[Result "0-1"]
[WhiteElo "1439"]
[BlackElo "2220"]
[TimeControl "300"]
[EndTime "0:59:37 PDT"]
[Termination "Salpingidis won by resignation"]

1. e4 {[%clk 0:04:59.3]} 1... e6 {[%clk 0:04:57.5]} 2. d4 {[%clk 0:04:58.3]}
2... d5 {[%clk 0:04:57.4]} 3. exd5 {[%clk 0:04:57.7]} 3... exd5 {[%clk
0:04:56.6]} 4. Nf3 {[%clk 0:04:57.4]} 4... Bd6 {[%clk 0:04:56.2]} 5. Bd3 {[%clk
0:04:56]} 5... Ne7 {[%clk 0:04:55.8]} 6. O-O {[%clk 0:04:54.8]} 6... O-O {[%clk
0:04:55.5]} 7. Re1 {[%clk 0:04:54]} 7... Nbc6 {[%clk 0:04:53.5]} 8. c3 {[%clk
0:04:52.4]} 8... Bf5 {[%clk 0:04:53]} 9. Bg5 {[%clk 0:04:46.5]} 9... f6 {[%clk
0:04:51.5]} 10. Bh4 {[%clk 0:04:38.9]} 10... Qd7 {[%clk 0:04:50.9]} 11. Qc2
{[%clk 0:04:06.6]} 11... Rae8 {[%clk 0:04:47.6]} 12. Nbd2 {[%clk 0:03:56.4]}
12... Bxd3 {[%clk 0:04:38.3]} 13. Qxd3 {[%clk 0:03:55.4]} 13... Nf5 {[%clk
0:04:38.2]} 14. Bg3 {[%clk 0:03:41.1]} 14... Nxg3 {[%clk 0:04:35.4]} 15. hxg3
{[%clk 0:03:36.4]} 15... Rxe1+ {[%clk 0:04:34.3]} 16. Rxe1 {[%clk 0:03:35.1]}
16... Re8 {[%clk 0:04:34.2]} 17. Rxe8+ {[%clk 0:03:08.4]} 17... Qxe8 {[%clk
0:04:34.1]} 18. Nf1 {[%clk 0:03:07.9]} 18... a6 {[%clk 0:04:30.4]} 19. Ne3
{[%clk 0:03:07.1]} 19... Bf8 {[%clk 0:04:27.2]} 20. Nxd5 {[%clk 0:03:01.7]}
20... Qf7 {[%clk 0:04:24.1]} 21. c4 {[%clk 0:02:51.1]} 21... b5 {[%clk
0:04:19.7]} 22. b3 {[%clk 0:02:49.4]} 22... Na5 {[%clk 0:04:14.4]} 23. Qc3
{[%clk 0:02:28.3]} 23... Nb7 {[%clk 0:04:01.7]} 24. Nf4 {[%clk 0:02:18.2]} 24...
Nd6 {[%clk 0:03:55.6]} 25. d5 {[%clk 0:02:08.5]} 25... Ne4 {[%clk 0:03:47.2]}
26. Qa5 {[%clk 0:02:06.2]} 26... Bc5 {[%clk 0:03:36.4]} 27. Qxa6 {[%clk
0:01:40.1]} 27... Bxf2+ {[%clk 0:03:32.6]} 28. Kf1 {[%clk 0:01:39.5]} 28... Bxg3
{[%clk 0:03:15.1]} 29. Qc8+ {[%clk 0:01:37.8]} 29... Qf8 {[%clk 0:03:14.6]} 30.
Qxf8+ {[%clk 0:01:32.5]} 30... Kxf8 {[%clk 0:03:14.5]} 31. Ne6+ {[%clk 0:01:32]}
31... Ke7 {[%clk 0:03:08.3]} 32. Nxc7 {[%clk 0:01:31.4]} 32... Bxc7 {[%clk
0:03:04.9]} 33. cxb5 {[%clk 0:01:26.1]} 33... Nc3 {[%clk 0:03:03.9]} 34. a4
{[%clk 0:01:20.7]} 34... Nxd5 {[%clk 0:03:02.9]} 35. Nd4 {[%clk 0:01:19.3]}
35... Kd6 {[%clk 0:02:53.4]} 36. Nf5+ {[%clk 0:01:17.8]} 36... Kc5 {[%clk
0:02:52.5]} 37. Nxg7 {[%clk 0:01:16.4]} 37... Kb4 {[%clk 0:02:51.6]} 38. Ne8
{[%clk 0:01:14.8]} 38... Be5 {[%clk 0:02:46.9]} 39. b6 {[%clk 0:01:13.7]} 39...
Nxb6 {[%clk 0:02:45.1]} 40. a5 {[%clk 0:01:12.5]} 40... Kxa5 {[%clk 0:02:44]}
41. Ng7 {[%clk 0:01:09.8]} 41... Kb4 {[%clk 0:02:42.2]} 0-1

[Event "Live Chess"]
[Site "Chess.com"]
[Date "2023.05.21"]
[Round "-"]
[White "Rusty_Bridges"]
[Black "TKDRyan"]
[Result "1-0"]
[WhiteElo "1529"]
[BlackElo "1138"]
[TimeControl "300"]
[EndTime "0:59:39 PDT"]
[Termination "Rusty_Bridges won by resignation"]

1. e4 {[%clk 0:04:55.4]} 1... c5 {[%clk 0:04:58.7]} 2. Be2 {[%clk 0:04:53.4]}
2... d6 {[%clk 0:04:57.9]} 3. f4 {[%clk 0:04:50.1]} 3... Nc6 {[%clk 0:04:56.8]}
4. Nf3 {[%clk 0:04:48.3]} 4... Nf6 {[%clk 0:04:55.5]} 5. d3 {[%clk 0:04:46.8]}
5... e6 {[%clk 0:04:54.6]} 6. O-O {[%clk 0:04:44.9]} 6... a6 {[%clk 0:04:53.8]}
7. Nc3 {[%clk 0:04:43.9]} 7... b5 {[%clk 0:04:52.9]} 8. a3 {[%clk 0:04:42]} 8...
Bb7 {[%clk 0:04:52.1]} 9. Be3 {[%clk 0:04:40]} 9... Be7 {[%clk 0:04:49.5]} 10.
f5 {[%clk 0:04:36.3]} 10... exf5 {[%clk 0:04:48.1]} 11. exf5 {[%clk 0:04:35.2]}
11... O-O {[%clk 0:04:46.4]} 12. Bg5 {[%clk 0:04:28.8]} 12... h6 {[%clk
0:04:40.6]} 13. Bh4 {[%clk 0:04:26.5]} 13... d5 {[%clk 0:04:31.6]} 14. Re1
{[%clk 0:04:17.4]} 14... c4 {[%clk 0:04:12.6]} 15. d4 {[%clk 0:04:11.9]} 15...
Qe8 {[%clk 0:03:53.2]} 16. Ne5 {[%clk 0:04:07.5]} 16... Nxe5 {[%clk 0:03:51.3]}
17. dxe5 {[%clk 0:04:06]} 17... Ne4 {[%clk 0:03:46.6]} 18. Nxe4 {[%clk
0:03:41.7]} 18... dxe4 {[%clk 0:03:44.9]} 19. Bxe7 {[%clk 0:03:39.7]} 19... Qxe7
{[%clk 0:03:42.8]} 20. e6 {[%clk 0:03:31.6]} 20... Qc5+ {[%clk 0:03:36.7]} 21.
Kh1 {[%clk 0:03:27.9]} 21... Qxf5 {[%clk 0:03:32.2]} 22. exf7+ {[%clk
0:03:25.9]} 22... Rxf7 {[%clk 0:03:11.4]} 23. a4 {[%clk 0:03:11.8]} 23... Raf8
{[%clk 0:03:05.4]} 24. b3 {[%clk 0:03:04.4]} 24... Qg5 {[%clk 0:02:55.9]} 25.
Rg1 {[%clk 0:02:51.8]} 25... Rf2 {[%clk 0:02:50.5]} 26. bxc4 {[%clk 0:02:46.1]}
26... e3 {[%clk 0:02:44.8]} 27. Bf3 {[%clk 0:02:31.9]} 27... e2 {[%clk
0:02:34.5]} 28. Bd5+ {[%clk 0:02:23.4]} 28... Kh8 {[%clk 0:02:26.5]} 29. Qe1
{[%clk 0:02:11]} 29... Bxd5 {[%clk 0:02:07.7]} 30. cxd5 {[%clk 0:02:09.1]} 30...
Qxg2+ {[%clk 0:02:02.4]} 31. Rxg2 {[%clk 0:02:06.6]} 31... Rf1+ {[%clk
0:02:01.6]} 32. Rg1 {[%clk 0:02:02.8]} 32... Rxe1 {[%clk 0:01:40]} 33. Raxe1
{[%clk 0:01:58.7]} 33... Rf2 {[%clk 0:01:37.5]} 34. Rg2 {[%clk 0:01:56.3]} 34...
Rf1+ {[%clk 0:01:36.4]} 35. Rg1 {[%clk 0:01:53]} 35... Rf2 {[%clk 0:01:35.8]}
36. axb5 {[%clk 0:01:45.3]} 36... axb5 {[%clk 0:01:34.3]} 37. d6 {[%clk
0:01:41.9]} 37... Kg8 {[%clk 0:01:33.5]} 38. d7 {[%clk 0:01:40.1]} 38... Kf7
{[%clk 0:01:28.4]} 1-0

[Event "Live Chess"]
[Site "Chess.com"]
[Date "2023.05.21"]
[Round "-"]
[White "Leonid_Starozhilov"]
[Black "WelshTiger"]
[Result "1-0"]
[WhiteElo "2657"]
[BlackElo "2360"]
[TimeControl "300"]
[EndTime "0:59:40 PDT"]
[Termination "Leonid_Starozhilov won by resignation"]

1. e4 {[%clk 0:04:57.9]} 1... c5 {[%clk 0:04:58.2]} 2. Nf3 {[%clk 0:04:56.1]}
2... d6 {[%clk 0:04:57.6]} 3. Bb5+ {[%clk 0:04:55.1]} 3... Nd7 {[%clk
0:04:54.7]} 4. O-O {[%clk 0:04:53.7]} 4... a6 {[%clk 0:04:53]} 5. Bxd7+ {[%clk
0:04:52.9]} 5... Bxd7 {[%clk 0:04:52.9]} 6. c3 {[%clk 0:04:52.2]} 6... Nf6
{[%clk 0:04:48.7]} 7. Re1 {[%clk 0:04:51.6]} 7... e5 {[%clk 0:04:29.6]} 8. d4
{[%clk 0:04:50.2]} 8... Qc7 {[%clk 0:04:26.5]} 9. dxe5 {[%clk 0:04:48.1]} 9...
dxe5 {[%clk 0:04:25.4]} 10. Bg5 {[%clk 0:04:47.8]} 10... Be7 {[%clk 0:04:16.7]}
11. c4 {[%clk 0:04:46.7]} 11... Be6 {[%clk 0:04:12.1]} 12. b3 {[%clk 0:04:38.1]}
12... Rd8 {[%clk 0:04:11]} 13. Qe2 {[%clk 0:04:36]} 13... h6 {[%clk 0:03:58]}
14. Bxf6 {[%clk 0:04:34.7]} 14... Bxf6 {[%clk 0:03:57]} 15. Nc3 {[%clk
0:04:34.6]} 15... O-O {[%clk 0:03:44.3]} 16. Rad1 {[%clk 0:04:33.2]} 16... Qa5
{[%clk 0:03:31.1]} 17. Nd5 {[%clk 0:04:28.9]} 17... Bxd5 {[%clk 0:03:30.5]} 18.
exd5 {[%clk 0:04:24.5]} 18... Rfe8 {[%clk 0:03:26.9]} 19. Qc2 {[%clk 0:04:12]}
19... Qc7 {[%clk 0:03:05.9]} 20. Re4 {[%clk 0:04:07.5]} 20... g6 {[%clk
0:02:57.1]} 21. Rde1 {[%clk 0:04:04]} 21... Bg7 {[%clk 0:02:56.4]} 22. Qc3
{[%clk 0:03:40.8]} 22... f5 {[%clk 0:02:53.3]} 23. Rxe5 {[%clk 0:03:40.3]} 23...
Rxe5 {[%clk 0:02:51.8]} 24. Nxe5 {[%clk 0:03:35.2]} 24... b5 {[%clk 0:02:31.1]}
25. f4 {[%clk 0:03:33]} 25... bxc4 {[%clk 0:02:28.7]} 26. bxc4 {[%clk
0:03:32.1]} 26... g5 {[%clk 0:02:25.2]} 27. Qd3 {[%clk 0:03:25.9]} 27... Qa5
{[%clk 0:02:14.2]} 28. Rf1 {[%clk 0:03:14.3]} 28... Rf8 {[%clk 0:02:11.7]} 29.
d6 {[%clk 0:03:06.8]} 29... Qd8 {[%clk 0:02:02.3]} 30. Qd5+ {[%clk 0:03:03]}
30... Kh7 {[%clk 0:01:59.8]} 31. d7 {[%clk 0:03:01.2]} 31... Qf6 {[%clk
0:01:42.7]} 32. Nc6 {[%clk 0:02:57.7]} 1-0

[Event "Live Chess"]
[Site "Chess.com"]
[Date "2023.05.21"]
[Round "-"]
[White "raminguy"]
[Black "booktrunk"]
[Result "1-0"]
[WhiteElo "1944"]
[BlackElo "1287"]
[TimeControl "300"]
[EndTime "0:59:49 PDT"]
[Termination "raminguy won by checkmate"]

1. d4 {[%clk 0:04:59]} 1... d5 {[%clk 0:04:58.4]} 2. Nc3 {[%clk 0:04:58.5]} 2...
Bf5 {[%clk 0:04:55.1]} 3. f3 {[%clk 0:04:55.8]} 3... e6 {[%clk 0:04:54.1]} 4. e4
{[%clk 0:04:54.4]} 4... dxe4 {[%clk 0:04:52.9]} 5. fxe4 {[%clk 0:04:54.3]} 5...
Bg6 {[%clk 0:04:50.6]} 6. h4 {[%clk 0:04:52.9]} 6... Bb4 {[%clk 0:04:47.7]} 7.
Bd3 {[%clk 0:04:40.1]} 7... h5 {[%clk 0:04:45.6]} 8. Nf3 {[%clk 0:04:32.8]} 8...
Nc6 {[%clk 0:04:40.9]} 9. Bf4 {[%clk 0:04:26.7]} 9... Bxc3+ {[%clk 0:04:34.6]}
10. bxc3 {[%clk 0:04:24.2]} 10... Nf6 {[%clk 0:04:33.6]} 11. Bg5 {[%clk
0:04:18.8]} 11... Qd7 {[%clk 0:04:29.1]} 12. Rb1 {[%clk 0:04:10.2]} 12... O-O-O
{[%clk 0:04:24.1]} 13. O-O {[%clk 0:03:54.7]} 13... Nh7 {[%clk 0:04:21.7]} 14.
Bxd8 {[%clk 0:03:51.6]} 14... Rxd8 {[%clk 0:04:18.6]} 15. Qc1 {[%clk 0:03:38.7]}
15... Nf6 {[%clk 0:04:15.9]} 16. Qb2 {[%clk 0:03:35.7]} 16... b6 {[%clk
0:04:13]} 17. Bb5 {[%clk 0:03:18.9]} 17... Bxe4 {[%clk 0:04:10]} 18. Ne5 {[%clk
0:03:16.3]} 18... Qd5 {[%clk 0:03:58.3]} 19. Bxc6 {[%clk 0:02:57]} 19... Qa5
{[%clk 0:03:52.9]} 20. Bxe4 {[%clk 0:02:40.9]} 20... Nxe4 {[%clk 0:03:51.9]} 21.
Nc6 {[%clk 0:02:39.6]} 21... Qd5 {[%clk 0:03:46.7]} 22. Nxd8 {[%clk 0:02:37.3]}
22... Kxd8 {[%clk 0:03:46]} 23. Rxf7 {[%clk 0:02:18.5]} 23... Nd2 {[%clk
0:03:44.9]} 24. Re1 {[%clk 0:02:04.3]} 24... Ne4 {[%clk 0:03:40.8]} 25. Qb4
{[%clk 0:01:58.8]} 25... Nd6 {[%clk 0:03:35.5]} 26. Rxg7 {[%clk 0:01:52.9]}
26... Nf5 {[%clk 0:03:33.2]} 27. Qf8# {[%clk 0:01:49.1]} 1-0

[Event "Live Chess"]
[Site "Chess.com"]
[Date "2023.05.21"]
[Round "-"]
[White "whitedjohn"]
[Black "Driftboard"]
[Result "1/2-1/2"]
[WhiteElo "1634"]
[BlackElo "862"]
[TimeControl "300"]
[EndTime "1:00:01 PDT"]
[Termination "Game drawn by agreement"]

1. e4 {[%clk 0:04:57.8]} 1... e5 {[%clk 0:04:58.7]} 2. Nf3 {[%clk 0:04:56.3]}
2... Nc6 {[%clk 0:04:57.4]} 3. Bb5 {[%clk 0:04:54.2]} 3... Nf6 {[%clk
0:04:56.4]} 4. d3 {[%clk 0:04:52.3]} 4... a6 {[%clk 0:04:53.2]} 5. Ba4 {[%clk
0:04:50.9]} 5... b5 {[%clk 0:04:51.5]} 6. Bb3 {[%clk 0:04:49.6]} 6... d6 {[%clk
0:04:48.5]} 7. h3 {[%clk 0:04:47.7]} 7... Be7 {[%clk 0:04:47.9]} 8. O-O {[%clk
0:04:46.2]} 8... O-O {[%clk 0:04:47.4]} 9. Bg5 {[%clk 0:04:43.2]} 9... Na5
{[%clk 0:04:46]} 10. c3 {[%clk 0:04:41.2]} 10... Nxb3 {[%clk 0:04:44.6]} 11.
Qxb3 {[%clk 0:04:40.1]} 11... Nd7 {[%clk 0:04:40.5]} 12. Bxe7 {[%clk 0:04:38.7]}
12... Qxe7 {[%clk 0:04:39.7]} 13. a4 {[%clk 0:04:37.2]} 13... Nc5 {[%clk
0:04:38.6]} 14. Qc2 {[%clk 0:04:32.3]} 14... bxa4 {[%clk 0:04:37]} 15. Nbd2
{[%clk 0:04:29.2]} 15... Bd7 {[%clk 0:04:20.5]} 16. d4 {[%clk 0:04:27.4]} 16...
exd4 {[%clk 0:04:14.5]} 17. cxd4 {[%clk 0:04:26.4]} 17... Nb3 {[%clk 0:04:09]}
18. Nxb3 {[%clk 0:04:23.6]} 18... axb3 {[%clk 0:04:08.4]} 19. Qxb3 {[%clk
0:04:22.7]} 19... Rab8 {[%clk 0:04:00.5]} 20. Qc2 {[%clk 0:04:17.5]} 20... c6
{[%clk 0:03:56]} 21. Rxa6 {[%clk 0:04:14.4]} 21... c5 {[%clk 0:03:49.9]} 22.
dxc5 {[%clk 0:04:10.2]} 22... dxc5 {[%clk 0:03:48.4]} 23. Rfa1 {[%clk
0:04:06.7]} 23... Bb5 {[%clk 0:03:44.8]} 24. R6a5 {[%clk 0:04:02.6]} 24... Qd7
{[%clk 0:03:30]} 25. Qxc5 {[%clk 0:03:50.7]} 25... Be2 {[%clk 0:03:16.1]} 26.
Ne5 {[%clk 0:03:43.4]} 1/2-1/2

[Event "Live Chess"]
[Site "Chess.com"]
[Date "2023.05.21"]
[Round "-"]
[White "Ian-Morley"]
[Black "mach247"]
[Result "0-1"]
[WhiteElo "1044"]
[BlackElo "1337"]
[TimeControl "300"]
[EndTime "1:00:16 PDT"]
[Termination "mach247 won by resignation"]

1. e4 {[%clk 0:04:57.6]} 1... d5 {[%clk 0:04:59.3]} 2. exd5 {[%clk 0:04:53.2]}
2... Qxd5 {[%clk 0:04:59.2]} 3. Nc3 {[%clk 0:04:52.5]} 3... Qd8 {[%clk
0:04:58.6]} 4. d4 {[%clk 0:04:51.9]} 4... Nf6 {[%clk 0:04:57.3]} 5. g3 {[%clk
0:04:51.1]} 5... Bg4 {[%clk 0:04:50.4]} 6. Be2 {[%clk 0:04:44.7]} 6... Bxe2
{[%clk 0:04:49]} 7. Qxe2 {[%clk 0:04:43.5]} 7... e6 {[%clk 0:04:48.3]} 8. Bg5
{[%clk 0:04:40.8]} 8... Be7 {[%clk 0:04:47.5]} 9. Nf3 {[%clk 0:04:38.3]} 9...
O-O {[%clk 0:04:45.8]} 10. Ne5 {[%clk 0:04:37.1]} 10... h6 {[%clk 0:04:39]} 11.
Bxf6 {[%clk 0:04:36]} 11... Bxf6 {[%clk 0:04:38.1]} 12. f4 {[%clk 0:04:35.5]}
12... Nd7 {[%clk 0:04:15.3]} 13. Nxd7 {[%clk 0:04:19.6]} 13... Qxd7 {[%clk
0:04:14.1]} 14. Ne4 {[%clk 0:04:18.7]} 14... Qxd4 {[%clk 0:04:06.2]} 15. Nxf6+
{[%clk 0:04:14.2]} 15... Qxf6 {[%clk 0:04:04.9]} 16. c3 {[%clk 0:04:12.4]} 16...
Rfd8 {[%clk 0:04:00.4]} 17. O-O {[%clk 0:04:10]} 17... Rd6 {[%clk 0:03:52.2]}
18. Rad1 {[%clk 0:04:02.9]} 18... Rad8 {[%clk 0:03:50.9]} 19. Rxd6 {[%clk
0:04:01.8]} 19... Rxd6 {[%clk 0:03:50.3]} 20. Rd1 {[%clk 0:04:00.9]} 20... Qe7
{[%clk 0:03:49]} 21. Rxd6 {[%clk 0:03:59.6]} 21... Qxd6 {[%clk 0:03:48.9]} 22.
Qb5 {[%clk 0:03:55.2]} 22... b6 {[%clk 0:03:29.1]} 23. Qe8+ {[%clk 0:03:53]}
23... Kh7 {[%clk 0:03:27.3]} 24. Qxf7 {[%clk 0:03:52.3]} 24... Qd1+ {[%clk
0:03:26.3]} 25. Kg2 {[%clk 0:03:50.4]} 25... Qe2+ {[%clk 0:03:25.7]} 26. Kh3
{[%clk 0:03:49.8]} 26... Qxb2 {[%clk 0:03:18.4]} 27. Qxe6 {[%clk 0:03:48.1]}
27... Qxc3 {[%clk 0:03:14.3]} 28. Qf5+ {[%clk 0:03:45.7]} 28... g6 {[%clk
0:03:08.3]} 29. Qf7+ {[%clk 0:03:44.5]} 29... Qg7 {[%clk 0:03:07.8]} 30. Qe8
{[%clk 0:03:26.1]} 30... c5 {[%clk 0:03:04.6]} 31. a4 {[%clk 0:03:20.5]} 31...
c4 {[%clk 0:03:03.1]} 32. Qc6 {[%clk 0:03:16.3]} 32... c3 {[%clk 0:03:02.4]} 33.
Qe4 {[%clk 0:03:09.5]} 33... Qc7 {[%clk 0:02:54.2]} 34. f5 {[%clk 0:03:06.9]}
34... Qd7 {[%clk 0:02:46.9]} 35. Qc2 {[%clk 0:03:02.3]} 35... Qxf5+ {[%clk
0:02:43.9]} 36. Qxf5 {[%clk 0:02:58.6]} 36... gxf5 {[%clk 0:02:43.8]} 0-1

[Event "Live Chess"]
[Site "Chess.com"]
[Date "2023.05.21"]
[Round "-"]
[White "Woodpusher500"]
[Black "diana21strabt"]
[Result "0-1"]
[WhiteElo "1240"]
[BlackElo "1720"]
[TimeControl "300"]
[EndTime "1:00:35 PDT"]
[Termination "diana21strabt won by resignation"]

1. e4 {[%clk 0:04:57.4]} 1... d5 {[%clk 0:04:58.6]} 2. exd5 {[%clk 0:04:53.1]}
2... Qxd5 {[%clk 0:04:57.5]} 3. Nc3 {[%clk 0:04:50.3]} 3... Qa5 {[%clk
0:04:56.4]} 4. d4 {[%clk 0:04:46.9]} 4... Nf6 {[%clk 0:04:54.9]} 5. Bd2 {[%clk
0:04:41.7]} 5... Bg4 {[%clk 0:04:53.5]} 6. Nf3 {[%clk 0:04:24.3]} 6... Nc6
{[%clk 0:04:51.3]} 7. Ne4 {[%clk 0:04:06.1]} 7... Qf5 {[%clk 0:04:47.2]} 8. Bd3
{[%clk 0:03:49.9]} 8... Nxe4 {[%clk 0:04:45.3]} 9. Bxe4 {[%clk 0:03:40.1]} 9...
Qxe4+ {[%clk 0:04:43.9]} 10. Qe2 {[%clk 0:03:38.6]} 10... Qxe2+ {[%clk
0:04:42.6]} 11. Kxe2 {[%clk 0:03:36.1]} 11... Bxf3+ {[%clk 0:04:41.6]} 12. Kxf3
{[%clk 0:03:34.1]} 12... Nxd4+ {[%clk 0:04:40.6]} 13. Ke3 {[%clk 0:03:30.2]}
13... Nxc2+ {[%clk 0:04:39.5]} 14. Ke2 {[%clk 0:03:27.5]} 14... Nxa1 {[%clk
0:04:38.5]} 15. Rxa1 {[%clk 0:03:25.6]} 15... e6 {[%clk 0:04:37]} 16. Rc1 {[%clk
0:03:23.7]} 16... O-O-O {[%clk 0:04:34.6]} 17. Bf4 {[%clk 0:03:18.9]} 17... Bd6
{[%clk 0:04:32.9]} 18. Bxd6 {[%clk 0:03:14.1]} 18... Rxd6 {[%clk 0:04:31.8]} 19.
Rd1 {[%clk 0:03:07.2]} 19... Rhd8 {[%clk 0:04:29]} 20. Rxd6 {[%clk 0:03:03.6]}
20... Rxd6 {[%clk 0:04:27]} 0-1

[Event "Live Chess"]
[Site "Chess.com"]
[Date "2023.05.21"]
[Round "-"]
[White "chessfiction"]
[Black "JamesWallman"]
[Result "1-0"]
[WhiteElo "2353"]
[BlackElo "755"]
[TimeControl "300"]
[EndTime "1:00:44 PDT"]
[Termination "chessfiction won by resignation"]

1. e4 {[%clk 0:04:59.1]} 1... e5 {[%clk 0:04:56.9]} 2. d4 {[%clk 0:04:59]} 2...
exd4 {[%clk 0:04:53]} 3. c3 {[%clk 0:04:58.9]} 3... dxc3 {[%clk 0:04:50.1]} 4.
Bc4 {[%clk 0:04:56.8]} 4... Nf6 {[%clk 0:04:43.3]} 5. Qb3 {[%clk 0:04:54.1]}
5... Qe7 {[%clk 0:04:36]} 6. Nxc3 {[%clk 0:04:47.6]} 6... Nxe4 {[%clk 0:04:30]}
7. Nd5 {[%clk 0:04:46.9]} 7... Nd2+ {[%clk 0:04:19]} 8. Kxd2 {[%clk 0:04:39.3]}
8... Nc6 {[%clk 0:04:09.3]} 9. Nxe7 {[%clk 0:04:37.8]} 9... Bxe7 {[%clk
0:04:06]} 10. Nf3 {[%clk 0:04:36.3]} 10... d6 {[%clk 0:03:35.4]} 11. Bxf7+
{[%clk 0:04:34.5]} 1-0

[Event "Live Chess"]
[Site "Chess.com"]
[Date "2023.05.21"]
[Round "-"]
[White "BostonStrangler"]
[Black "Tiltador"]
[Result "1-0"]
[WhiteElo "2068"]
[BlackElo "761"]
[TimeControl "300"]
[EndTime "1:00:45 PDT"]
[Termination "BostonStrangler won by checkmate"]

1. Nf3 {[%clk 0:04:56.8]} 1... d5 {[%clk 0:04:57]} 2. c4 {[%clk 0:04:55.2]} 2...
dxc4 {[%clk 0:04:55]} 3. Qa4+ {[%clk 0:04:53.1]} 3... c6 {[%clk 0:04:51.8]} 4.
Qxc4 {[%clk 0:04:52.4]} 4... Be6 {[%clk 0:04:49.3]} 5. Qf4 {[%clk 0:04:45.9]}
5... Qd6 {[%clk 0:04:33.6]} 6. d3 {[%clk 0:04:42]} 6... Qxf4 {[%clk 0:04:31.5]}
7. Bxf4 {[%clk 0:04:41.9]} 7... f6 {[%clk 0:04:20.6]} 8. Nc3 {[%clk 0:04:39.7]}
8... g6 {[%clk 0:04:16.7]} 9. g3 {[%clk 0:04:36.3]} 9... Bg7 {[%clk 0:04:15.5]}
10. Bg2 {[%clk 0:04:34.9]} 10... f5 {[%clk 0:04:13.3]} 11. Ng5 {[%clk
0:04:28.7]} 11... Bd5 {[%clk 0:04:03.8]} 12. Bxd5 {[%clk 0:04:24.2]} 12... cxd5
{[%clk 0:04:02.1]} 13. Nxd5 {[%clk 0:04:23.1]} 13... Na6 {[%clk 0:03:52.3]} 14.
Ne6 {[%clk 0:04:20.2]} 14... Bxb2 {[%clk 0:03:48.6]} 15. Rb1 {[%clk 0:04:18.4]}
15... Ba3 {[%clk 0:03:30.8]} 16. Ndc7+ {[%clk 0:04:08.9]} 16... Nxc7 {[%clk
0:03:26.7]} 17. Nxc7+ {[%clk 0:04:08.8]} 17... Kf7 {[%clk 0:03:22.3]} 18. Nxa8
{[%clk 0:04:08.2]} 18... Nf6 {[%clk 0:03:21.2]} 19. Nc7 {[%clk 0:04:05.8]} 19...
b6 {[%clk 0:03:03.3]} 20. Nb5 {[%clk 0:04:02.2]} 20... Bc5 {[%clk 0:03:00.6]}
21. d4 {[%clk 0:04:01]} 21... Bd6 {[%clk 0:02:53.2]} 22. Nxd6+ {[%clk
0:03:59.4]} 22... exd6 {[%clk 0:02:51.8]} 23. Bxd6 {[%clk 0:03:59.3]} 23... Rd8
{[%clk 0:02:47.7]} 24. Be5 {[%clk 0:03:58.7]} 24... Ne4 {[%clk 0:02:43.6]} 25.
f3 {[%clk 0:03:55]} 25... Nc3 {[%clk 0:02:38.2]} 26. Rc1 {[%clk 0:03:53.4]}
26... Nxa2 {[%clk 0:02:35.2]} 27. Rc7+ {[%clk 0:03:51.9]} 27... Kg8 {[%clk
0:02:27.5]} 28. Rxa7 {[%clk 0:03:48.8]} 28... Nc3 {[%clk 0:02:23.9]} 29. Kf2
{[%clk 0:03:47]} 29... Nd5 {[%clk 0:02:17]} 30. Rc1 {[%clk 0:03:44.6]} 30... b5
{[%clk 0:02:00.7]} 31. e4 {[%clk 0:03:42.6]} 31... fxe4 {[%clk 0:01:54.8]} 32.
fxe4 {[%clk 0:03:41.3]} 32... Rf8+ {[%clk 0:01:53.6]} 33. Ke2 {[%clk 0:03:37.6]}
33... Nb4 {[%clk 0:01:45.4]} 34. Rg7+ {[%clk 0:03:35.5]} 34... Kh8 {[%clk
0:01:41]} 35. Rxg6+ {[%clk 0:03:35]} 35... Rf6 {[%clk 0:01:17.8]} 36. Rc8#
{[%clk 0:03:31]} 1-0